fUST/lending_fUST_20250414
["ID","MTS","AMOUNT","RATE_DAILY","PERIOD"]
[357933580,1744596634936,-169.690401,0.00028996,2]
[357933581,1744596634945,-151.0,0.00028996,2]
[357933582,1744596634958,-33182.54706765,0.00029,2]
[357933583,1744596634970,-1618.53385393,0.00029,7]
[357933584,1744596634981,-1618.53385393,0.00029,7]
[357933585,1744596634992,-269.13078552,0.00029,7]
[357933586,1744596635001,-269.13078552,0.00029,7]
[357933587,1744596635011,-880.0,0.00029,2]
[357933588,1744596635020,-2202.0,0.00029,2]
[357933589,1744596635030,-604.74837079,0.00029,7]
[357933590,1744596635039,-604.74837079,0.00029,7]
[357933591,1744596635049,-561.19760542,0.00029,7]
[357933592,1744596635058,-561.19760542,0.00029,7]
[357933593,1744596635068,-151.0,0.00029,2]
[357933594,1744596635077,-151.0,0.00029,2]
[357933595,1744596635086,-500.0,0.00029126,2]
[357933596,1744596635095,-290.53696349,0.00029141,8]
[357933597,1744596635104,-150.134,0.00029191,2]
[357933598,1744596635114,-150.12,0.00029191,2]
[357933599,1744596635123,-208.322,0.00029191,2]
[357933600,1744596635133,-707.0,0.00029191,2]
[357933601,1744596635142,-547.825,0.00029191,2]
[357933602,1744596635151,-488.242,0.00029191,2]
[357933603,1744596635161,-407.382,0.00029191,2]
[357933604,1744596635170,-465.19398134,0.00029195,2]
[357933605,1744596635180,-500.0,0.00029297,2]
[357933606,1744596635190,-290.53696349,0.0002959,8]
[357933607,1744596635200,-7205.58476863,0.00029621,2]
[357933608,1744596635212,-500.0,0.00029631,2]
[357933609,1744596635221,-500.0,0.00029713,2]
[357933610,1744596635231,-500.0,0.00029734,2]
[357933611,1744596635242,-929.13359182,0.0002991,2]
[357933612,1744596635252,-645.7804854,0.00029936,2]
[357933613,1744596635263,-318.0,0.0003,120]
[357933614,1744596635273,-2000.0,0.0003,4]
[357933615,1744596635283,-290.53696349,0.00030038,9]
[357933616,1744596635292,-200.04148488,0.00030137,2]
[357933617,1744596635302,-587.0,0.00030299,2]
[357933618,1744596635312,-290.53696349,0.00030486,9]
[357933619,1744596635321,-290.53696349,0.00030934,9]
[357933620,1744596635331,-150.74,0.00031167,14]
[357933621,1744596635341,-290.53696349,0.00031383,9]
[357933622,1744596635350,-290.53696349,0.00031831,10]
[357933623,1744596635359,-2000.0,0.00032,4]
[357933624,1744596635380,-1702.0,0.00032,2]
[357933625,1744596635392,-151.0,0.00032,2]
[357933626,1744596635402,-707.0,0.00032191,2]
[357933627,1744596635411,-543.0,0.00032191,2]
[357933628,1744596635422,-402.0,0.00032191,2]
[357933629,1744596635432,-151.0,0.00032191,2]
[357933630,1744596635442,-290.53696349,0.00032279,10]
[357933631,1744596635452,-514.92397776,0.00032422,5]
[357933632,1744596635461,-1000.0,0.00032422,5]
[357933633,1744596635471,-1000.0,0.00032422,5]
[357933634,1744596635481,-1000.0,0.00032422,5]
[357933635,1744596635491,-1018.3910884,0.00032422,5]
[357933636,1744596635501,-1000.0,0.00032492,2]
[357933637,1744596635510,-1000.0,0.00032545,5]
[357933638,1744596635520,-1000.0,0.00032574,5]
[357933639,1744596635530,-290.53696349,0.00032728,10]
[357933640,1744596635541,-500.0,0.00032877,2]
[357933641,1744596635551,-1000.0,0.00032877,5]
[357933642,1744596635561,-823.0,0.0003295,3]
[357933643,1744596635571,-824.43604966,0.00033124,5]
[357933644,1744596635583,-1000.0,0.0003315,5]
[357933645,1744596635593,-290.53696349,0.00033176,11]
[357933646,1744596635603,-827.4432582,0.00033273,4]
[357933647,1744596635613,-290.53696349,0.00033624,11]
[357933648,1744596635624,-1000.0,0.000338,30]
[357933649,1744596635633,-279.92316441,0.00033973,5]
[357933650,1744596635643,-500.0,0.00033973,5]
[357933651,1744596635654,-500.0,0.00033973,5]
[357933652,1744596635663,-500.0,0.00033973,5]
[357933653,1744596635673,-500.0,0.00033973,5]
[357933654,1744596635683,-500.0,0.00033973,5]
[357933655,1744596635693,-500.0,0.00033973,5]
[357933656,1744596635705,-386.06352857,0.00033973,5]
[357933657,1744596635716,-500.0,0.00033973,5]
[357933658,1744596635726,-500.0,0.00033973,5]
[357933659,1744596635737,-500.0,0.00033973,5]
[357933660,1744596635746,-500.0,0.00033973,5]
[357933661,1744596635756,-508.249564,0.00033973,5]
[357933662,1744596635765,-500.0,0.00033973,5]
[357933663,1744596635775,-500.0,0.00033973,5]
[357933664,1744596635784,-500.0,0.00033973,5]
[357933665,1744596635794,-500.0,0.00033973,5]
[357933666,1744596635803,-500.0,0.00033973,5]
[357933667,1744596635814,-500.0,0.00033973,5]
[357933668,1744596635823,-500.0,0.00033973,5]
[357933669,1744596635833,-500.0,0.00033973,5]
[357933670,1744596635843,-514.51782607,0.00033973,5]
[357933671,1744596635852,-500.0,0.00033973,5]
[357933672,1744596635861,-500.0,0.00033973,5]
[357933673,1744596635870,-500.8560759,0.00033973,5]
[357933674,1744596635880,-500.0,0.00033973,5]
[357933675,1744596635890,-500.0,0.00033973,5]
[357933676,1744596635901,-500.0,0.00033973,5]
[357933677,1744596635910,-162.30920607,0.00033989,10]
[357933678,1744596635920,-14411.1695373,0.0003399,2]
[357933679,1744596635929,-151.0,0.0003399,2]
[357933680,1744596635938,-151.0,0.0003399,2]
[357933681,1744596635947,-151.0,0.0003399,2]
[357933682,1744596635957,-151.0,0.0003399,2]
[357933683,1744596635967,-36027.9238431,0.0003399,2]
[357933684,1744596635976,-81590.32934843,0.00034,2]
[357933685,1744596635986,-1696.89297351,0.00034,3]
[357933686,1744596635995,-2000.0,0.00034,4]
[357933687,1744596636006,-85204.73539582,0.00034,2]
[357933708,1744596638604,-291.064584,0.00027671,7]
[357933709,1744596638614,-183.66215961,0.00028999,2]
[357933710,1744596638624,-183.66215961,0.00033999,2]
[357933711,1744596638633,-176.69761266,0.00033999,2]
[357933712,1744596638642,-4735.42250183,0.00034,2]
[357933719,1744596640676,-183.66215961,0.00033999,2]
[357933720,1744596640687,-176.69761266,0.00033999,2]
[357933721,1744596640697,-51954.96618094,0.00034,2]
[357933722,1744596640711,-3776.10704537,0.00034,2]
[357933723,1744596640723,-94279.21391868,0.00034,2]
[357933724,1744596640733,-151.0,0.00034,2]
[357933725,1744596640743,-151.0,0.00034,2]
[357933726,1744596640753,-210.047208,0.00034,2]
[357933727,1744596640763,-290.53696349,0.00034072,11]
[357933728,1744596640772,-160.0,0.0003411,3]
[357933729,1744596640782,-161.33937321,0.0003411,5]
[357933730,1744596640792,-7205.58476863,0.00034293,2]
[357933731,1744596640801,-5001.52408117,0.000343,2]
[357933732,1744596640811,-23367.23050771,0.00034303,2]
[357933733,1744596640823,-151.0,0.000344,17]
[357933734,1744596640832,-290.53696349,0.00034521,12]
[357933735,1744596640843,-512.34779858,0.00034531,5]
[357933736,1744596640853,-290.53696349,0.00034969,12]
[357933737,1744596640863,-500.0,0.00034973,5]
[357933738,1744596640873,-180.05316099,0.00034973,5]
[357933739,1744596640883,-500.0,0.00034973,5]
[357933740,1744596640894,-7205.58476863,0.0003499,2]
[357933741,1744596640903,-532.78154124,0.00035,5]
[357933742,1744596640913,-40241.64192205,0.00035,2]
[357933743,1744596640923,-200.5205,0.00035,5]
[357933744,1744596640932,-200.0,0.00035,120]
[357933745,1744596640942,-500.0,0.00035062,5]
[357933746,1744596640952,-500.0,0.00035062,5]
[357933747,1744596640962,-478.75,0.00035191,2]
[357933748,1744596640972,-543.0,0.00035191,2]
[357933749,1744596640982,-151.0,0.000353,19]
[357933750,1744596640991,-290.53696349,0.00035417,12]
[357933751,1744596641000,-200.5205,0.0003574,5]
[357933752,1744596641010,-1152.0,0.00035834,3]
[357933753,1744596641020,-290.53696349,0.00035866,12]
[357933754,1744596641029,-151.44990328,0.00035873,5]
[357933755,1744596641039,-2235.25304275,0.0003589,3]
[357933756,1744596641051,-19381.50126315,0.0003589,3]
[357933757,1744596641061,-1038.6,0.000359,30]
[357933758,1744596641073,-1745.47873685,0.000359,30]
[357933759,1744596641086,-1136.05126315,0.000359,30]
[357933760,1744596641096,-11260.81604613,0.000359,30]
[357933761,1744596641107,-1512.81684643,0.000359,30]
[357933775,1744596643587,-236.61789188,0.0003519,2]
[357933776,1744596643597,-394.19537616,0.000359,30]
[357933791,1744596646395,-830.6395,0.000359,30]
[357933792,1744596646407,-2000.0,0.000359,30]
[357933793,1744596646419,-30266.46301077,0.000359,30]
[357933794,1744596646485,-6741.13307684,0.000359,30]
[357933795,1744596646556,-16395.43127785,0.000359,30]
[357933796,1744596646568,-15762.75825266,0.000359,30]
[357933940,1744597838667,-237.41514824,0.00025519,2]
[357933942,1744597838679,-250.0,0.00025519,2]
[357933943,1744597838690,-187.17212325,0.00025519,2]
[357933945,1744597838701,-250.0,0.0002552,2]
[357933946,1744597838712,-419.9901559,0.00025527,2]
[357933947,1744597838723,-160.0,0.00025527,2]
[357933948,1744597838734,-693.79967693,0.00025533,2]
[357933949,1744597838745,-518.62875056,0.00025537,2]
[357933950,1744597838757,-300.0,0.0002569,2]
[357933951,1744597838769,-300.0,0.0002569,2]
[357933952,1744597838780,-500.0,0.0002569,2]
[357933953,1744597838793,-500.0,0.0002569,2]
[357933954,1744597838804,-500.0,0.0002569,2]
[357933955,1744597838815,-500.0,0.0002569,2]
[357933956,1744597838827,-447.3965824,0.0002574,2]
[357933957,1744597838840,-503.89213441,0.00025938,2]
[357933958,1744597838850,-500.0,0.00025938,2]
[357933959,1744597838860,-503.24368717,0.00025956,2]
[357933960,1744597838870,-500.0,0.00025956,2]
[357933961,1744597838880,-500.0,0.00025956,2]
[357933962,1744597838890,-181.10945476,0.00025956,2]
[357933963,1744597838904,-503.64476443,0.00025956,2]
[357933964,1744597838914,-500.0,0.00025975,2]
[357933965,1744597838926,-500.0,0.000261,2]
[357933966,1744597838937,-500.0,0.000261,2]
[357933967,1744597838949,-294.08906589,0.000261,2]
[357933968,1744597838961,-500.0,0.000261,2]
[357933969,1744597838977,-187.93592485,0.000261,2]
[357933970,1744597838991,-312.06407515,0.000261,2]
[357933971,1744597839001,-500.0,0.000261,2]
[357933972,1744597839013,-500.0,0.000261,2]
[357933973,1744597839023,-278.43676753,0.000269,7]
[357933974,1744597839033,-278.43676744,0.00027348,7]
[357933975,1744597839042,-156.42630109,0.00027397,2]
[357933976,1744597839054,-500.0,0.00027397,2]
[357933977,1744597839064,-500.0,0.00027397,2]
[357933978,1744597839074,-502.13705646,0.00027397,2]
[357933979,1744597839086,-500.0,0.00027397,2]
[357933980,1744597839098,-504.74608971,0.00027397,2]
[357933981,1744597839110,-500.0,0.00027397,2]
[357933982,1744597839120,-500.0,0.00027397,2]
[357933983,1744597839131,-557.77,0.00027397,2]
[357933984,1744597839142,-500.0,0.00027397,5]
[357933985,1744597839153,-278.43676744,0.00027797,7]
[357933986,1744597839163,-655.07362928,0.000279,2]
[357933987,1744597839174,-420.0,0.00027936,2]
[357933988,1744597839185,-312.45808972,0.00028,10]
[357933989,1744597839195,-278.43676744,0.00028245,7]
[357933990,1744597839206,-9618.39133245,0.0002869,2]
[357934007,1744597840920,-500.0,0.0002569,2]
[357934008,1744597840931,-500.0,0.0002569,2]
[357934009,1744597840942,-500.0,0.0002569,2]
[357934010,1744597840953,-218.13915756,0.0002569,2]
[357934011,1744597840965,-403.12917869,0.0002569,2]
[357934012,1744597840977,-362.60262522,0.0002569,2]
[357934013,1744597840988,-219.60836399,0.0002569,2]
[357934014,1744597840999,-465.98689481,0.0002569,2]
[357934015,1744597841011,-500.0,0.0002569,2]
[357934016,1744597841022,-500.0,0.0002569,2]
[357934017,1744597841033,-500.0,0.0002569,2]
[357934018,1744597841046,-500.0,0.0002569,2]
[357934020,1744597841057,-500.0,0.0002569,2]
[357934022,1744597841067,-500.0,0.0002569,2]
[357934023,1744597841078,-500.0,0.0002569,2]
[357934024,1744597841090,-500.0,0.0002569,2]
[357934025,1744597841101,-500.0,0.0002569,2]
[357934026,1744597841111,-500.0,0.0002569,2]
[357934027,1744597841122,-500.0,0.0002569,2]
[357934028,1744597841133,-500.0,0.0002569,2]
[357934029,1744597841144,-310.50054325,0.0002569,2]
[357934030,1744597841154,-500.0,0.0002569,2]
[357934031,1744597841165,-171.03323648,0.0002569,2]
[357934067,1744597843759,-328.96676352,0.0002569,2]
[357934068,1744597843770,-500.0,0.0002569,2]
[357934069,1744597843781,-250.37741617,0.0002569,2]
[357934070,1744597843792,-500.0,0.0002569,2]
[357934075,1744597844002,-500.0,0.0002569,2]
[357934078,1744597844013,-1388.92173434,0.0002869,2]
[357934080,1744597844026,-3982.96226476,0.0002869,2]
[357934119,1744597846788,-5209.80596965,0.0002869,2]
[357934121,1744597846798,-278.43676744,0.00028693,8]
[357934122,1744597846808,-403.45,0.000289,2]
[357934123,1744597846818,-278.43676744,0.00029141,8]
[357934124,1744597846828,-278.43676744,0.0002959,8]
[357934125,1744597846840,-655.07362921,0.00029614,2]
[357934126,1744597846850,-278.43676744,0.00030038,9]
[357934127,1744597846861,-587.0,0.00030378,2]
[357934128,1744597846871,-278.43676744,0.00030486,9]
[357934129,1744597846881,-278.43676744,0.00030934,9]
[357934130,1744597846890,-655.07362921,0.00031329,2]
[357934131,1744597846900,-278.43676744,0.00031383,9]
[357934132,1744597846910,-1000.0,0.00031417,5]
[357934133,1744597846920,-1000.0,0.00031454,5]
[357934134,1744597846930,-1000.0,0.00031579,2]
[357934135,1744597846940,-772.42980751,0.00031579,5]
[357934136,1744597846950,-169.11865251,0.00031579,5]
[357934137,1744597846959,-1000.0,0.00031579,5]
[357934138,1744597846973,-1008.57860081,0.00031579,5]
[357934139,1744597846982,-278.43676744,0.00031831,10]
[357934140,1744597846992,-278.43676744,0.00032279,10]
[357934141,1744597847001,-278.43676744,0.00032728,10]
[357934142,1744597847013,-1000.0,0.00032877,5]
[357934143,1744597847023,-823.0,0.00033034,3]
[357934144,1744597847031,-655.07362921,0.00033043,2]
[357934145,1744597847042,-278.43676744,0.00033176,11]
[357934146,1744597847052,-278.43676744,0.00033624,11]
[357934147,1744597847061,-278.43676744,0.00034072,11]
[357934148,1744597847071,-667.7602595,0.00034135,4]
[357934149,1744597847081,-278.43676744,0.00034521,12]
[357934150,1744597847093,-204.04,0.000346,31]
[357934151,1744597847103,-204.04,0.000346,31]
[357934152,1744597847112,-500.0,0.0003475,5]
[357934153,1744597847122,-655.07362921,0.00034757,2]
[357934154,1744597847132,-158.87295162,0.00034824,2]
[357934155,1744597847142,-606.34712474,0.00034912,7]
[357934156,1744597847152,-500.0,0.00034913,5]
[357934157,1744597847162,-412.50179686,0.00034913,5]
[357934158,1744597847171,-501.73718445,0.00034913,5]
[357934159,1744597847181,-510.28766508,0.00034913,5]
[357934160,1744597847190,-278.43676744,0.00034969,12]
[357934161,1744597847199,-500.0,0.00035022,5]
[357934162,1744597847209,-500.0,0.00035022,5]
[357934163,1744597847219,-500.0,0.00035044,5]
[357934164,1744597847229,-500.0,0.00035044,5]
[357934165,1744597847238,-500.0,0.00035044,5]
[357934166,1744597847248,-500.0,0.00035044,5]
[357934167,1744597847257,-500.0,0.00035044,5]
[357934168,1744597847266,-500.0,0.00035044,5]
[357934169,1744597847275,-504.37946526,0.00035044,5]
[357934170,1744597847283,-500.0,0.00035044,5]
[357934171,1744597847293,-569.78474938,0.00035044,5]
[357934172,1744597847303,-500.0,0.00035044,5]
[357934173,1744597847312,-500.0,0.00035044,5]
[357934174,1744597847321,-500.0,0.00035044,5]
[357934175,1744597847331,-500.0,0.00035044,5]
[357934176,1744597847343,-500.0,0.00035044,5]
[357934177,1744597847353,-500.0,0.00035044,5]
[357934178,1744597847362,-500.0,0.00035044,5]
[357934179,1744597847372,-500.0,0.00035044,5]
[357934180,1744597847382,-500.0,0.00035044,5]
[357934181,1744597847391,-500.0,0.00035044,5]
[357934182,1744597847401,-500.0,0.0003505,5]
[357934183,1744597847411,-500.0,0.0003505,5]
[357934184,1744597847420,-500.0,0.0003512,5]
[357934185,1744597847430,-278.43676744,0.00035417,12]
[357934186,1744597847440,-500.0,0.00035773,5]
[357934187,1744597847449,-8646.7017224,0.0003579,3]
[357934188,1744597847458,-60946.52921892,0.000358,2]
[357934269,1744599031710,-750.44887794,0.00027297,2]
[357934271,1744599031720,-300.0,0.00027396,2]
[357934273,1744599031730,-300.0,0.00027396,2]
[357934275,1744599031740,-500.0,0.00027397,2]
[357934277,1744599031751,-500.0,0.00027397,2]
[357934278,1744599031761,-500.0,0.00027397,2]
[357934281,1744599031770,-500.0,0.00027397,2]
[357934283,1744599031780,-500.0,0.00027397,5]
[357934284,1744599031790,-500.0,0.000274,5]
[357934286,1744599031799,-214.1821288,0.000279,7]
[357934288,1744599031809,-312.45808972,0.00028,10]
[357934291,1744599031818,-214.1821288,0.000289,8]
[357934292,1744599031828,-363.1,0.00029,2]
[357934295,1744599031839,-420.0,0.00029736,2]
[357934297,1744599031848,-214.1821288,0.000299,8]
[357934299,1744599031859,-150.282,0.00030576,2]
[357934301,1744599031869,-214.1821288,0.000309,9]
[357934303,1744599031878,-214.1821288,0.000319,10]
[357934305,1744599031888,-587.0,0.00032276,3]
[357934307,1744599031898,-1000.0,0.00032877,5]
[357934309,1744599031908,-1000.0,0.00032879,5]
[357934311,1744599031919,-214.1821288,0.000329,10]
[357934313,1744599031929,-214.1821288,0.000339,11]
[357934315,1744599031938,-500.0,0.000343,2]
[357934317,1744599031948,-500.0,0.00034511,5]
[357934319,1744599031959,-500.0,0.00034529,5]
[357934321,1744599031968,-500.8201946,0.00034726,4]
[357934322,1744599031978,-214.1821288,0.000349,12]
[357934325,1744599031989,-823.0,0.00035033,3]
[357934326,1744599032004,-367.83339369,0.00035258,7]
[357934328,1744599032014,-500.0,0.00035258,2]
[357934330,1744599032025,-500.0,0.00035258,7]
[357934332,1744599032035,-577.8198207,0.00035258,2]
[357934335,1744599032046,-250.04193513,0.00035258,7]
[357934336,1744599032055,-160.0,0.00035418,2]
[357934338,1744599032066,-419.9901559,0.00035418,2]
[357934340,1744599032076,-503.31388786,0.00035689,2]
[357934342,1744599032087,-534.53,0.00035689,2]
[357934345,1744599032097,-38641.19337028,0.0003569,3]
[357934347,1744599032110,-779.42492777,0.0003569,3]
[357934350,1744599032127,-12229.61323405,0.0003569,3]
[357934351,1744599032137,-3270.40842216,0.0003569,3]
[357934354,1744599032147,-160.0,0.0003569,3]
[357934356,1744599032157,-58292.90104399,0.00035699,2]
[357934357,1744599032166,-10775.22251466,0.00035699,3]
[357934360,1744599032176,-21164.49257201,0.000357,2]
[357934362,1744599032188,-19974.26033582,0.000357,2]
[357934554,1744599038102,-424.44298731,0.00035689,15]
[357934556,1744599038112,-75.55701269,0.000357,2]
[357934699,1744599042958,-500.0,0.00035257,7]
[357934700,1744599042969,-184.27758468,0.000357,2]
[357934775,1744599045982,-4007.92356321,0.000357,2]
[357934866,1744600232016,-677.08333333,0.00026245,2]
[357934868,1744600232026,-612.37518134,0.00026413,2]
[357934870,1744600232035,-500.0,0.00026513,2]
[357934871,1744600232045,-312.45808972,0.00027,3]
[357934872,1744600232054,-250.0,0.00027197,2]
[357934873,1744600232074,-500.0,0.00027397,5]
[357934874,1744600232085,-500.0,0.00027535,2]
[357934875,1744600232094,-205.11802445,0.000279,7]
[357934876,1744600232104,-612.37518134,0.00028046,2]
[357934877,1744600232114,-500.0,0.00028266,2]
[357934879,1744600232125,-500.0,0.00028464,2]
[357934880,1744600232134,-500.0,0.00028652,2]
[357934881,1744600232143,-205.11802443,0.00028757,8]
[357934882,1744600232152,-326.79,0.00029,2]
[357934883,1744600232161,-205.11802443,0.00029614,8]
[357934884,1744600232171,-612.37518134,0.00029678,2]
[357934885,1744600232180,-210.9326723,0.00029842,2]
[357934886,1744600232189,-300.0,0.0002999,2]
[357934887,1744600232198,-300.0,0.0002999,2]
[357934888,1744600232208,-500.0,0.00029991,2]
[357934889,1744600232217,-171.0579991,0.00030329,2]
[357934890,1744600232226,-205.11802443,0.00030471,9]
[357934891,1744600232236,-500.0,0.00030496,7]
[357934892,1744600232245,-807.57543821,0.00030902,7]
[357934893,1744600232254,-612.37518134,0.00031311,2]
[357934894,1744600232263,-205.11802443,0.00031329,9]
[357934895,1744600232272,-500.0,0.00031754,7]
[357934896,1744600232281,-205.11802443,0.00032186,10]
[357934897,1744600232291,-420.0,0.0003246,3]
[357934898,1744600232300,-500.0,0.00032633,7]
[357934899,1744600232309,-1000.0,0.00032877,5]
[357934900,1744600232319,-205.11802443,0.00033043,11]
[357934901,1744600232328,-205.11802443,0.000339,11]
[357934903,1744600232338,-375.615146,0.00034726,4]
[357934905,1744600232348,-205.11802443,0.00034757,12]
[357934908,1744600232357,-587.0,0.00035134,3]
[357934910,1744600232367,-160.0,0.00035319,2]
[357934912,1744600232376,-419.9901559,0.00035319,2]
[357934914,1744600232386,-500.0,0.00035573,5]
[357934916,1744600232395,-500.0,0.00035573,5]
[357934918,1744600232406,-485.44892698,0.00035576,2]
[357934920,1744600232415,-500.0,0.00035577,2]
[357934922,1744600232425,-22326.47690248,0.00035577,4]
[357934989,1744600238026,-612.37518134,0.00032943,2]
[357934991,1744600238038,-92.57613887,0.00035577,2]
[357935007,1744600238185,-409.60819728,0.00035577,2]
[357935009,1744600238196,-505.25467671,0.00035577,2]
[357935011,1744600238206,-302.58723047,0.00035577,7]
[357935013,1744600238216,-227.1273191,0.00035577,7]
[357935015,1744600238226,-423.66028553,0.00035577,7]
[357935017,1744600238236,-38438.69510934,0.00035577,4]
[357935173,1744600246173,-64421.64323836,0.00035577,4]
[357935174,1744600246230,-3531.36974868,0.00035577,4]
[357935252,1744601432052,-164.18854932,0.000222,2]
[357935254,1744601432062,-250.0,0.000269,2]
[357935256,1744601432071,-171.0,0.00027,2]
[357935258,1744601432081,-500.0,0.00027397,5]
[357935260,1744601432091,-294.11,0.00029,2]
[357935262,1744601432100,-4739.5959853,0.00032061,7]
[357935264,1744601432109,-400.0,0.00032444,3]
[357935266,1744601432119,-7561.5811052,0.00032446,2]
[357935268,1744601432129,-213.9398056,0.00032554,2]
[357935270,1744601432139,-1000.0,0.00032877,5]
[357935272,1744601432149,-199.57,0.00034,7]
[357935274,1744601432159,-281.7113595,0.00034726,4]
[357935276,1744601432170,-160.0,0.00034968,2]
[357935280,1744601432180,-160.0,0.00034989,2]
[357935281,1744601432189,-419.9901559,0.00034989,2]
[357935284,1744601432199,-560.0,0.00035023,3]
[357935286,1744601432208,-416.31075537,0.00035071,2]
[357935288,1744601432219,-501.79071949,0.00035071,2]
[357935290,1744601432229,-501.72559501,0.00035071,2]
[357935292,1744601432238,-483.53804338,0.00035071,2]
[357935300,1744601432326,-18.61381731,0.00035071,2]
[357935302,1744601432336,-208.76587548,0.0003521,2]
[357935304,1744601432345,-501.28439482,0.00035217,2]
[357935306,1744601432355,-501.69455905,0.00035217,2]
[357935308,1744601432364,-500.0,0.00035217,2]
[357935310,1744601432374,-158.80668802,0.00035217,2]
[357935312,1744601432383,-1469.74520112,0.00035309,3]
[357935314,1744601432394,-768.33863769,0.00035309,3]
[357935352,1744601438293,-297.7388577,0.00032445,2]
[357935354,1744601438304,-547.25314446,0.00032445,2]
[357935356,1744601438314,-220.80382827,0.000329,10]
[357935358,1744601438323,-220.80382813,0.00033141,11]
[357935360,1744601438333,-220.80382813,0.00033383,11]
[357935362,1744601438343,-220.80382813,0.00033624,11]
[357935364,1744601438353,-220.80382813,0.00033866,11]
[357935366,1744601438362,-220.80382813,0.00034107,11]
[357935368,1744601438372,-220.80382813,0.00034348,11]
[357935370,1744601438381,-220.80382813,0.0003459,12]
[357935372,1744601438391,-220.80382813,0.00034831,12]
[357935374,1744601438401,-160.0,0.00034968,2]
[357935376,1744601438410,-524.21195885,0.00035071,2]
[357935378,1744601438420,-220.80382813,0.00035072,12]
[357935380,1744601438430,-208.76587547,0.00035215,2]
[357935382,1744601438439,-609.10179486,0.00035217,2]
[357935384,1744601438449,-1635.6835261,0.00035309,3]
[357935386,1744601438459,-3873.76736491,0.0003531,3]
[357935388,1744601438468,-11621.3020947,0.0003531,3]
[357935390,1744601438478,-500.0,0.0003531,2]
[357935392,1744601438487,-501.69295618,0.0003531,2]
[357935394,1744601438497,-253.90099702,0.0003531,2]
[357935396,1744601438506,-570.29,0.0003531,2]
[357935398,1744601438515,-502.09685152,0.0003531,2]
[357935400,1744601438525,-500.93895143,0.0003531,2]
[357935402,1744601438534,-511.58106821,0.0003531,2]
[357935404,1744601438543,-500.0,0.0003531,2]
[357935406,1744601438553,-500.0,0.0003531,2]
[357935408,1744601438562,-614.67529326,0.0003531,2]
[357935410,1744601438571,-890.15,0.0003531,2]
[357935412,1744601438580,-500.0,0.0003531,2]
[357935414,1744601438590,-614.67622014,0.0003531,2]
[357935416,1744601438599,-505.16368962,0.0003531,2]
[357935418,1744601438610,-550.26912546,0.0003531,2]
[357935420,1744601438620,-500.0,0.0003531,2]
[357935422,1744601438629,-504.08362168,0.0003531,2]
[357935424,1744601438639,-503.62266521,0.0003531,2]
[357935426,1744601438649,-500.0,0.0003531,2]
[357935428,1744601438659,-160.0,0.0003531,3]
[357935430,1744601438668,-500.0,0.0003531,2]
[357935432,1744601438678,-513.11184503,0.0003531,2]
[357935434,1744601438689,-635.7418483,0.0003531,2]
[357935436,1744601438698,-503.36831466,0.0003531,2]
[357935438,1744601438707,-608.45629435,0.0003531,2]
[357935440,1744601438717,-500.0,0.0003531,2]
[357935442,1744601438726,-509.48793111,0.0003531,2]
[357935444,1744601438736,-3873.76736491,0.00035311,3]
[357935446,1744601438745,-220.80382813,0.00035314,12]
[357935448,1744601438755,-255.11406344,0.00035316,7]
[357935450,1744601438764,-412.90362039,0.00035317,7]
[357935452,1744601438773,-211.81106133,0.00035317,7]
[357935454,1744601438782,-158.98912337,0.00035317,7]
[357935456,1744601438792,-500.0,0.00035318,2]
[357935458,1744601438801,-504.28453316,0.00035318,2]
[357935460,1744601438811,-508.92801944,0.00035318,2]